Department family,Entity,Date,Expense type,Expense area,Supplier,Transaction number, Amount 
Elht - Main Radiology Dept,Elht - Main Radiology Dept,23/04/2020,Scan Referrals,Diagnostic & Clinical Support,4ways Healthcare,1848657,"33,064.48"
Rbth - Pharmacy,Rbth - Pharmacy,09/04/2020,Drugs - Budget,Diagnostic & Clinical Support,Aah Pharmaceuticals Ltd Hills,1842051,"53,915.20"
Rbth - Pharmacy,Rbth - Pharmacy,23/04/2020,Drugs - Budget,Diagnostic & Clinical Support,Aah Pharmaceuticals Ltd Hills,1848384,"54,072.00"
Rbth - Pharmacy,Rbth - Pharmacy,02/04/2020,Drugs - Budget,Diagnostic & Clinical Support,Aah Pharmaceuticals Ltd Hills,1846301,-228.46
Rbth - Pharmacy,Rbth - Pharmacy,02/04/2020,Drugs - Budget,Diagnostic & Clinical Support,Aah Pharmaceuticals Ltd Hills,1846302,-6.26
Rbth - Pharmacy,Rbth - Pharmacy,07/04/2020,Drugs - Budget,Diagnostic & Clinical Support,Aah Pharmaceuticals Ltd Hills,1847554,-10.79
Rbth - Pharmacy,Rbth - Pharmacy,07/04/2020,Drugs - Budget,Diagnostic & Clinical Support,Aah Pharmaceuticals Ltd Hills,1847555,-10.79
Rbth - Pharmacy,Rbth - Pharmacy,07/04/2020,Drugs - Budget,Diagnostic & Clinical Support,Aah Pharmaceuticals Ltd Hills,1847556,-32.37
Rbth - Pharmacy,Rbth - Pharmacy,07/04/2020,Drugs - Budget,Diagnostic & Clinical Support,Aah Pharmaceuticals Ltd Hills,1847559,-7.86
Rbth - Pharmacy,Rbth - Pharmacy,08/04/2020,Drugs - Budget,Diagnostic & Clinical Support,Aah Pharmaceuticals Ltd Hills,1848328,-626.40
Rbth - Pharmacy,Rbth - Pharmacy,08/04/2020,Drugs - Budget,Diagnostic & Clinical Support,Aah Pharmaceuticals Ltd Hills,1848329,-839.00
Rbth - Pharmacy,Rbth - Pharmacy,09/04/2020,Drugs - Budget,Diagnostic & Clinical Support,Aah Pharmaceuticals Ltd Hills,1848323,-751.68
Rbth - Pharmacy,Rbth - Pharmacy,09/04/2020,Drugs - Budget,Diagnostic & Clinical Support,Aah Pharmaceuticals Ltd Hills,1848324,"-1,006.80"
Rbth - Pharmacy,Rbth - Pharmacy,09/04/2020,Drugs - Budget,Diagnostic & Clinical Support,Aah Pharmaceuticals Ltd Hills,1848331,-6.92
Rbth - Pharmacy,Rbth - Pharmacy,21/04/2020,Drugs - Budget,Diagnostic & Clinical Support,Aah Pharmaceuticals Ltd Hills,1851025,-27.98
Rbth - Pharmacy,Rbth - Pharmacy,21/04/2020,Drugs - Budget,Diagnostic & Clinical Support,Aah Pharmaceuticals Ltd Hills,1851040,-281.59
Rbth - Pharmacy,Rbth - Pharmacy,23/04/2020,Drugs - Budget,Diagnostic & Clinical Support,Alliance Healthcare,1850034,"47,500.00"
Rbth - Pharmacy,Rbth - Pharmacy,28/04/2020,Drugs - Budget,Diagnostic & Clinical Support,Alliance Healthcare,1853181,"47,500.00"
Rbth Theatres,Rbth Theatres,16/04/2020,Med & Surg Supplies,Surgical & Anaes Services,Ambu Ltd,1842119,"28,097.00"
Critical Care,Critical Care,28/04/2020,Med & Surg Maintenance,Surgical & Anaes Services,Baxter Healthcare Ltd,1850657,"21,258.00"
Rbth - Pharmacy,Rbth - Pharmacy,07/04/2020,Drugs - Budget,Diagnostic & Clinical Support,Baxter Healthcare Ltd,1842736,"43,109.01"
Rbth - Pharmacy,Rbth - Pharmacy,23/04/2020,Drugs - Budget,Diagnostic & Clinical Support,Baxter Healthcare Ltd,1845367,"26,715.51"
Rbth - Pharmacy,Rbth - Pharmacy,23/04/2020,Drugs - Budget,Diagnostic & Clinical Support,Baxter Healthcare Ltd,1848240,"38,175.93"
Rbth - Pharmacy,Rbth - Pharmacy,02/04/2020,Drugs - Budget,Diagnostic & Clinical Support,Bayer Ltd,1840035,"32,775.00"
Rbth - Pharmacy,Rbth - Pharmacy,02/04/2020,Drugs - Budget,Diagnostic & Clinical Support,Bayer Ltd,1840036,"39,330.00"
Rbth - Pharmacy,Rbth - Pharmacy,21/04/2020,Drugs - Budget,Diagnostic & Clinical Support,Bayer Ltd,1846347,"21,850.00"
Rbth - Pharmacy,Rbth - Pharmacy,28/04/2020,Drugs - Budget,Diagnostic & Clinical Support,Bayer Ltd,1853287,"26,220.00"
Rbth Equipment Library,Rbth Equipment Library,28/04/2020,Med & Surg Equipment,Corporate Services,Becton Dickinson Uk Ltd,1852655,"88,000.00"
Balance Sheet,Balance Sheet,09/04/2020,Additions - Auc (P),Non Directorate,Blackburn With Darwen Borough Council,29706,"118,521.66"
Balance Sheet,Balance Sheet,23/04/2020,Additions - Auc (P),Non Directorate,Blackpool Council,29789,"118,521.65"
Cancer Medical Staffing,Cancer Medical Staffing,16/04/2020,Purch Of Hc-Non Nhs-Priv Sect,Surgical & Anaes Services,Bmi  Healthcare Ltd,1825834,"104,306.72"
Cancer Medical Staffing,Cancer Medical Staffing,16/04/2020,Purch Of Hc-Non Nhs-Priv Sect,Surgical & Anaes Services,Bmi  Healthcare Ltd,1840962,"110,941.96"
Cancer Medical Staffing,Cancer Medical Staffing,16/04/2020,Purch Of Hc-Non Nhs-Priv Sect,Surgical & Anaes Services,Bmi  Healthcare Ltd,1847612,"84,314.75"
Rbth Endoscopy,Rbth Endoscopy,16/04/2020,Med & Surg Equipment,Medicine & Emergency Care,Boston Scientific Ltd (Christine Morin),1849199,"34,793.64"
Rbth Endoscopy,Rbth Endoscopy,16/04/2020,Med & Surg Equipment,Medicine & Emergency Care,Boston Scientific Ltd (Christine Morin),1849200,"51,184.41"
Rbth Endoscopy,Rbth Endoscopy,16/04/2020,Med & Surg Equipment,Medicine & Emergency Care,Boston Scientific Ltd (Christine Morin),1849202,"33,068.68"
Ross Endoscopy,Ross Endoscopy,16/04/2020,Med & Surg Supplies,Medicine & Emergency Care,Boston Scientific Ltd (Christine Morin),1762090,-590.52
Rbth Endoscopy,Rbth Endoscopy,16/04/2020,Med & Surg Supplies,Medicine & Emergency Care,Boston Scientific Ltd (Christine Morin),1641474,"-19,878.00"
Bgth Pfi Contract,Bgth Pfi Contract,21/04/2020,Pfi Unitary Charges,Corporate Services,Burnley General Hosp Phase V Spc Ltd,1847254,"442,494.58"
Bgth Energy,Bgth Energy,16/04/2020,Consultancy Services,Estates & Facilities,Cadantis Forensics,1848983,"38,287.30"
Balance Sheet,Balance Sheet,09/04/2020,Additions - Auc (P),Non Directorate,Canon Medical Systems Ltd,29764,"800,000.00"
Balance Sheet,Balance Sheet,21/04/2020,Additions - Auc (P),Non Directorate,Canon Medical Systems Ltd,29765,"170,000.00"
Balance Sheet,Balance Sheet,21/04/2020,Additions - Auc (P),Non Directorate,Canon Medical Systems Ltd,29766,"790,000.00"
Balance Sheet,Balance Sheet,21/04/2020,Additions - Auc (P),Non Directorate,Canon Medical Systems Ltd,29767,"790,000.00"
Balance Sheet,Balance Sheet,09/04/2020,Additions - Auc (P),Non Directorate,Canon Medical Systems Ltd,29831,"-80,000.00"
Balance Sheet,Balance Sheet,21/04/2020,Additions - Auc (P),Non Directorate,Canon Medical Systems Ltd,29868,"-87,500.00"
Elht Administration,Elht Administration,28/04/2020,Photocopiers,Estates & Facilities,Canon Uk Limited,1846409,"41,133.71"
Balance Sheet,Balance Sheet,28/04/2020,Additions - Auc (P),Non Directorate,Carl Zeiss Ltd,29852,"28,493.43"
Comp Dept - Trading Account,Comp Dept - Trading Account,23/04/2020,Comp H Ware Purch Non-Capital,Corporate Services,Ccs Media Ltd,1844769,"30,900.00"
Comp Dept - Trading Account,Comp Dept - Trading Account,23/04/2020,Comp H Ware Purch Non-Capital,Corporate Services,Ccs Media Ltd,1845967,"27,222.00"
Comp Dept - Trading Account,Comp Dept - Trading Account,28/04/2020,Comp H Ware Purch Non-Capital,Corporate Services,Ccs Media Ltd,1844770,"55,380.00"
Community Rent,Community Rent,23/04/2020,Rents,Estates & Facilities,Community Health Partnerships Ltd,76505,"432,772.40"
Community Rent,Community Rent,23/04/2020,Rents,Estates & Facilities,Community Health Partnerships Ltd,76506,"432,772.40"
Community Rent,Community Rent,23/04/2020,Rents,Estates & Facilities,Community Health Partnerships Ltd,76507,"432,772.40"
East Lancs Breast Screening,East Lancs Breast Screening,23/04/2020,Other Costs - Services,Diagnostic & Clinical Support,Community Health Partnerships Ltd,76516,-15.00
Balance Sheet,Balance Sheet,07/04/2020,Pfi Trust Support Payment,Non Directorate,Consort (Trust Support Payment),1844816,"48,582.66"
Elht Parking,Elht Parking,07/04/2020,Car Parking,Estates & Facilities,Consort Healthcare,1840489,"57,029.54"
Rbth Energy,Rbth Energy,07/04/2020,Electricity,Estates & Facilities,Consort Healthcare,1840471,"204,982.83"
Rbth Pfi Contract,Rbth Pfi Contract,01/04/2020,Pfi Unitary Charges,Corporate Services,Consort Healthcare,1840490,"1,657,996.89"
Balance Sheet,Balance Sheet,02/04/2020,Additions - Auc (P),Non Directorate,Consort Healthcare,29683,"123,430.80"
Rbth Pfi Contract,Rbth Pfi Contract,07/04/2020,Pfi Unitary Charges,Corporate Services,Consort Healthcare,1845469,"-4,134.64"
Elht - General Pathology,Elht - General Pathology,09/04/2020,Other Computer Costs Maint,Diagnostic & Clinical Support,Csc Computer Sciences Ltd,1839719,"30,155.00"
Rbth - Pharmacy,Rbth - Pharmacy,02/04/2020,Drugs - Budget,Diagnostic & Clinical Support,Csl Behring,1838752,"25,200.00"
Rbth - Pharmacy,Rbth - Pharmacy,16/04/2020,Drugs - Budget,Diagnostic & Clinical Support,Csl Behring,1845644,"23,100.00"
Rbth - Pharmacy,Rbth - Pharmacy,23/04/2020,Drugs - Budget,Diagnostic & Clinical Support,Csl Behring,1850088,"25,200.00"
 I.T Telephones, I.T Telephones,28/04/2020,Calls - Mobile Telephones,Corporate Services,Ee Limited,1850997,"29,112.48"
Dietetics,Dietetics,23/04/2020,Med & Surg Supplies,Diagnostic & Clinical Support,Fresenius Kabi Ltd,1845561,"37,770.38"
Dietetics,Dietetics,23/04/2020,Med & Surg Supplies,Diagnostic & Clinical Support,Fresenius Kabi Ltd,1845591,"34,953.61"
Dietetics,Dietetics,23/04/2020,Med & Surg Equipment,Diagnostic & Clinical Support,Fresenius Kabi Ltd,1845590,"22,327.45"
Paed Inpatient A Rbth,Paed Inpatient A Rbth,09/04/2020,Med & Surg Equipment,Family Care,Fresenius Kabi Ltd,1820954,-2.00
Paed Inpatient A Rbth,Paed Inpatient A Rbth,23/04/2020,Med & Surg Equipment,Family Care,Fresenius Kabi Ltd,1784726,-1.60
Dietetics,Dietetics,09/04/2020,Med & Surg Supplies,Diagnostic & Clinical Support,Fresenius Kabi Ltd,1784723,-1.98
Dietetics,Dietetics,09/04/2020,Med & Surg Supplies,Diagnostic & Clinical Support,Fresenius Kabi Ltd,1784725,-109.46
Dietetics,Dietetics,09/04/2020,Med & Surg Supplies,Diagnostic & Clinical Support,Fresenius Kabi Ltd,1820939,-194.40
Dietetics,Dietetics,09/04/2020,Med & Surg Supplies,Diagnostic & Clinical Support,Fresenius Kabi Ltd,1820941,-546.00
Dietetics,Dietetics,09/04/2020,Med & Surg Supplies,Diagnostic & Clinical Support,Fresenius Kabi Ltd,1820972,-468.00
Dietetics,Dietetics,09/04/2020,Med & Surg Supplies,Diagnostic & Clinical Support,Fresenius Kabi Ltd,1820973,-35.28
Dietetics,Dietetics,09/04/2020,Med & Surg Equipment,Diagnostic & Clinical Support,Fresenius Kabi Ltd,1820971,-141.12
Dietetics,Dietetics,28/04/2020,Med & Surg Supplies,Diagnostic & Clinical Support,Fresenius Kabi Ltd,1820969,-0.80
National Workforce Trnsfmation,National Workforce Trnsfmation,23/04/2020,External Training Consultants,Corporate Services,Ge Healthcare,1848411,"600,000.00"
Elht Emergency Preparedness,Elht Emergency Preparedness,28/04/2020,Med & Surg Supplies,Corporate Services,Genmed Enterprises Ltd,1851034,"295,305.00"
Elht-Microbiology,Elht-Microbiology,02/04/2020,Mes Contracts,Diagnostic & Clinical Support,Genmed Managed Services Ltd,1835715,"60,129.04"
Systems & E-Commerce,Systems & E-Commerce,02/04/2020,Software Licence Fee,Corporate Services,Ghx Uk Ltd,1844812,"48,500.00"
Rbth - Pharmacy,Rbth - Pharmacy,23/04/2020,Drugs - Budget,Diagnostic & Clinical Support,Healthcare At Home Ltd,1849485,"76,500.00"
Rbth - Pharmacy,Rbth - Pharmacy,23/04/2020,Drugs - Budget,Diagnostic & Clinical Support,Healthcare At Home Ltd,1849500,"40,793.00"
Rbth - Pharmacy,Rbth - Pharmacy,23/04/2020,Drugs - Budget,Diagnostic & Clinical Support,Healthcare At Home Ltd,1849520,"41,177.40"
Rbth - Pharmacy,Rbth - Pharmacy,23/04/2020,Drugs - Budget,Diagnostic & Clinical Support,Healthcare At Home Ltd,1849538,"42,900.00"
Rbth - Pharmacy,Rbth - Pharmacy,23/04/2020,Drugs - Budget,Diagnostic & Clinical Support,Healthcare At Home Ltd,1849540,"29,011.35"
Centralised Booking Office,Centralised Booking Office,28/04/2020,Comp S Ware Purch Non-Capital,Diagnostic & Clinical Support,Healthcare Communications,1849793,"90,641.40"
Elht - Main Radiology Dept,Elht - Main Radiology Dept,09/04/2020,Comp S Ware Purch Non-Capital,Diagnostic & Clinical Support,Healthcare Software Solutions,1840588,"34,285.50"
Comp Dept - Trading Account,Comp Dept - Trading Account,28/04/2020,Comp H Ware Purch Non-Capital,Corporate Services,Insight Direct (Uk) Ltd,1848153,"45,965.07"
Balance Sheet,Balance Sheet,23/04/2020,Additions - Auc (P),Non Directorate,Integrated Health Projects,29847,"1,004,652.40"
Urology Robot Non Pay,Urology Robot Non Pay,23/04/2020,Med & Surg Equipment,Surgical & Anaes Services,Intuitive Surgical Ltd,1844779,"27,247.00"
Comp Dept - Trading Account,Comp Dept - Trading Account,23/04/2020,Comp H Ware Purch Non-Capital,Corporate Services,Ithealth Uk Ltd,1844873,"27,500.00"
Rbth Theatres,Rbth Theatres,16/04/2020,Med & Surg Equipment,Surgical & Anaes Services,Johnson & Johnson Medical Ltd,1809793,"22,958.58"
Bgth Theatre T&O Non Pay,Bgth Theatre T&O Non Pay,07/04/2020,Med & Surg Implants,Surgical & Anaes Services,Johnson & Johnson Medical Ltd,1698669,"-1,151.17"
Rbth - Pharmacy,Rbth - Pharmacy,07/04/2020,Drugs - Budget,Diagnostic & Clinical Support,Johnson & Johnson Medical Ltd,1847550,"-3,029.98"
Pro Elh Lancs T H Ft,Pro Elh Lancs T H Ft,07/04/2020,Test Referrals,Diagnostic & Clinical Support,Lancashire Teaching Hospitals Nhs Ft,75484,"21,583.33"
Pro Elh Lancs T H Ft,Pro Elh Lancs T H Ft,07/04/2020,Test Referrals,Diagnostic & Clinical Support,Lancashire Teaching Hospitals Nhs Ft,75959,"48,512.80"
Pro Elh Lancs T H Ft,Pro Elh Lancs T H Ft,07/04/2020,Test Referrals,Diagnostic & Clinical Support,Lancashire Teaching Hospitals Nhs Ft,76043,"47,210.56"
Pro Elh Lancs T H Ft,Pro Elh Lancs T H Ft,07/04/2020,Test Referrals,Diagnostic & Clinical Support,Lancashire Teaching Hospitals Nhs Ft,76044,"42,500.83"
Pro Elh Lancs T H Ft,Pro Elh Lancs T H Ft,23/04/2020,Test Referrals,Diagnostic & Clinical Support,Lancashire Teaching Hospitals Nhs Ft,75958,"52,147.10"
Pro Elh Lancs T H Ft,Pro Elh Lancs T H Ft,23/04/2020,Test Referrals,Diagnostic & Clinical Support,Lancashire Teaching Hospitals Nhs Ft,76542,"46,634.02"
Pro Elh Lancs T H Ft,Pro Elh Lancs T H Ft,23/04/2020,Test Referrals,Diagnostic & Clinical Support,Lancashire Teaching Hospitals Nhs Ft,76543,"26,755.56"
Pro Elh Lancs T H Ft,Pro Elh Lancs T H Ft,07/04/2020,Test Referrals,Diagnostic & Clinical Support,Lancashire Teaching Hospitals Nhs Ft,75567,"-91,209.56"
East Lancs Acute Resus,East Lancs Acute Resus,07/04/2020,"Training, Travel & Subsistence","Education, Research & Innov'N",Lancashire Teaching Hospitals Nhs Ft,75950,-560.00
Director Of Finance,Director Of Finance,23/04/2020,Interpretation Fees,Corporate Services,Language Empire Ltd,1848980,"29,877.06"
Director Of Finance,Director Of Finance,28/04/2020,Internal Audit Fees,Corporate Services,Liverpool University Hospitals Nhs Ft,76479,"33,907.50"
Pro Elh Cen Man Trust,Pro Elh Cen Man Trust,21/04/2020,Test Referrals,Diagnostic & Clinical Support,Manchester University Nhs Foundation Trust,76367,"27,193.75"
Ent Outpatients - St. Peters,Ent Outpatients - St. Peters,02/04/2020,Med & Surg Maintenance,Surgical & Anaes Services,Manchester University Nhs Foundation Trust,76448,-943.16
Surgical Div Mgmt,Surgical Div Mgmt,28/04/2020,Purch Of Hc-Non Nhs-Priv Sect,Surgical & Anaes Services,Mcm Insourcing Limited,1843521,"21,492.00"
Surgical Div Mgmt,Surgical Div Mgmt,28/04/2020,Purch Of Hc-Non Nhs-Priv Sect,Surgical & Anaes Services,Mcm Insourcing Limited,1843524,"21,492.00"
Elht - Main Radiology Dept,Elht - Main Radiology Dept,23/04/2020,Scan Referrals,Diagnostic & Clinical Support,Medica Reporting Ltd,1848281,"26,180.00"
Rbth - Cardiac Catheter Lab,Rbth - Cardiac Catheter Lab,02/04/2020,Purch Of Hc-Non Nhs-Priv Sect,Medicine & Emergency Care,Medtronic Ltd,1837371,"194,186.75"
Rbth - Cardiac Catheter Lab,Rbth - Cardiac Catheter Lab,23/04/2020,Purch Of Hc-Non Nhs-Priv Sect,Medicine & Emergency Care,Medtronic Ltd,1847184,"156,297.22"
Gyn Outpatients Elht,Gyn Outpatients Elht,09/04/2020,Med & Surg Maintenance,Family Care,Medtronic Ltd,1847361,"-6,500.00"
Elht Diabetes,Elht Diabetes,09/04/2020,Med & Surg Supplies,Medicine & Emergency Care,Medtronic Ltd,1847104,-82.32
Elht Diabetes,Elht Diabetes,09/04/2020,Med & Surg Supplies,Medicine & Emergency Care,Medtronic Ltd,1847604,-608.65
Elht Diabetes,Elht Diabetes,09/04/2020,Pat Apps - Other,Medicine & Emergency Care,Medtronic Ltd,1846030,-89.64
Elht Blood Budget,Elht Blood Budget,24/04/2020,Therapeutic Products,Diagnostic & Clinical Support,Nhs Blood And Transplant,73100,"43,685.16"
Elht Blood Budget,Elht Blood Budget,02/04/2020,Drugs  - Nutrition / Blood,Diagnostic & Clinical Support,Nhs Blood And Transplant,76145,"-1,621.46"
Elht Blood Budget,Elht Blood Budget,09/04/2020,Drugs  - Nutrition / Blood,Diagnostic & Clinical Support,Nhs Blood And Transplant,75871,"-3,191.96"
Elht Blood Budget,Elht Blood Budget,09/04/2020,Drugs  - Nutrition / Blood,Diagnostic & Clinical Support,Nhs Blood And Transplant,75873,"-2,003.40"
Elht Blood Budget,Elht Blood Budget,23/04/2020,Drugs  - Nutrition / Blood,Diagnostic & Clinical Support,Nhs Blood And Transplant,76548,"-2,025.16"
Elht Blood Budget,Elht Blood Budget,24/04/2020,Med & Surg Implants,Diagnostic & Clinical Support,Nhs Blood And Transplant,68534,"-1,692.05"
Elht Blood Budget,Elht Blood Budget,24/04/2020,Therapeutic Products,Diagnostic & Clinical Support,Nhs Blood And Transplant,73511,"-43,685.16"
Bgth Theatre T&O Non Pay,Bgth Theatre T&O Non Pay,02/04/2020,Med & Surg Supplies,Surgical & Anaes Services,Nhs Blood And Transplant,76083,-847.44
Elht - Ct,Elht - Ct,21/04/2020,X-Ray Equip Maint Contracts,Diagnostic & Clinical Support,Nhs Supply Chain Maintenance Contracts 201,1841457,"40,238.80"
Rbth - Pharmacy,Rbth - Pharmacy,02/04/2020,Drugs - Budget,Diagnostic & Clinical Support,Novartis Pharmaceuticals Uk Ltd,1845653,"22,134.60"
Rbth - Pharmacy,Rbth - Pharmacy,02/04/2020,Drugs - Budget,Diagnostic & Clinical Support,Novartis Pharmaceuticals Uk Ltd,1845654,"21,582.74"
Rbth - Pharmacy,Rbth - Pharmacy,14/04/2020,Drugs - Budget,Diagnostic & Clinical Support,Novartis Pharmaceuticals Uk Ltd,1842253,"27,606.80"
Rbth - Pharmacy,Rbth - Pharmacy,23/04/2020,Drugs - Budget,Diagnostic & Clinical Support,Novartis Pharmaceuticals Uk Ltd,1845418,"32,054.40"
Rbth - Pharmacy,Rbth - Pharmacy,07/04/2020,Drugs - Budget,Diagnostic & Clinical Support,Novartis Pharmaceuticals Uk Ltd,1847531,"-1,202.04"
Rbth - Pharmacy,Rbth - Pharmacy,21/04/2020,Drugs - Budget,Diagnostic & Clinical Support,Novartis Pharmaceuticals Uk Ltd,1850734,-89.04
Rbth - Pharmacy,Rbth - Pharmacy,21/04/2020,Drugs - Budget,Diagnostic & Clinical Support,Novartis Pharmaceuticals Uk Ltd,1850735,-890.40
Rbth - Pharmacy,Rbth - Pharmacy,21/04/2020,Drugs - Budget,Diagnostic & Clinical Support,Novartis Pharmaceuticals Uk Ltd,1850736,"-19,510.80"
Rbth Endoscopy,Rbth Endoscopy,23/04/2020,Med & Surg Equipment,Medicine & Emergency Care,Olympus Keymed,1845502,"47,925.90"
Elht-Blood Sciences,Elht-Blood Sciences,09/04/2020,Mes Contracts,Diagnostic & Clinical Support,Ortho Clinical Diagnostics,1840081,"96,617.19"
Elht-Blood Sciences,Elht-Blood Sciences,28/04/2020,Mes Contracts,Diagnostic & Clinical Support,Ortho Clinical Diagnostics,1847012,"96,617.19"
Balance Sheet,Balance Sheet,23/04/2020,Additions - Auc (P),Non Directorate,Orthofix Ltd,29784,"30,438.90"
National Workforce Trnsfmation,National Workforce Trnsfmation,28/04/2020,"Training, Travel & Subsistence",Corporate Services,Oxford University Hospitals Nhs Ft,76096,"29,028.00"
Balance Sheet,Balance Sheet,09/04/2020,Additions - Auc (P),Non Directorate,Portakabin (Refurbished) Ltd,29795,"28,321.80"
Apms - Alt Prov Med Services,Apms - Alt Prov Med Services,23/04/2020,Support Services,Family Care,Pwe Healthcare,76620,"25,000.00"
Rbth - Pharmacy,Rbth - Pharmacy,02/04/2020,Drugs - Budget,Diagnostic & Clinical Support,Roche Products Ltd,1838887,"22,523.95"
Bgth - Pharmacy,Bgth - Pharmacy,07/04/2020,Drugs - Budget,Diagnostic & Clinical Support,Rowlands Pharmacy,1838662,"147,254.95"
Rbth - Pharmacy,Rbth - Pharmacy,02/04/2020,Drugs - Budget,Diagnostic & Clinical Support,Rowlands Pharmacy,1837261,"583,137.21"
Elht Administration,Elht Administration,23/04/2020,Printing And Stationery,Estates & Facilities,S F Taylor & Co Ltd,1846410,"22,755.96"
Bgth Pfi Contract,Bgth Pfi Contract,09/04/2020,Pfi Unitary Charges,Corporate Services,Siemens Healthcare,1841086,"57,275.10"
Elht-Blood Sciences,Elht-Blood Sciences,23/04/2020,Mes Contracts,Diagnostic & Clinical Support,Siemens Healthcare Diagnostics Limited,1849770,"83,347.75"
Elht Waste Disposal,Elht Waste Disposal,21/04/2020,Domestic Waste,Estates & Facilities,Sita Uk Limited,1829085,"20,886.53"
Pch Environmental Services,Pch Environmental Services,21/04/2020,Domestic Waste,Estates & Facilities,Sita Uk Limited,1850703,"-1,922.00"
It Support,It Support,02/04/2020,Microsoft Licenses,Corporate Services,Softcat Ltd,1838878,"462,516.41"
It Support,It Support,23/04/2020,Application Maintenance,Corporate Services,Softcat Ltd,1849929,"28,032.36"
Elht Waste Disposal,Elht Waste Disposal,23/04/2020,Clinical Waste,Estates & Facilities,Srcl Ltd,1847767,"25,158.86"
Balance Sheet,Balance Sheet,09/04/2020,Nhs Supply Chain,Non Directorate,Supply Chain Coordination Ltd,1840960,"185,791.70"
Balance Sheet,Balance Sheet,09/04/2020,Nhs Supply Chain,Non Directorate,Supply Chain Coordination Ltd,1841451,"165,606.89"
Balance Sheet,Balance Sheet,16/04/2020,Additions - Auc (P),Non Directorate,Supply Chain Coordination Ltd,29676,"67,067.24"
Balance Sheet,Balance Sheet,16/04/2020,Nhs Supply Chain,Non Directorate,Supply Chain Coordination Ltd,1843429,"214,318.81"
Balance Sheet,Balance Sheet,23/04/2020,Nhs Supply Chain,Non Directorate,Supply Chain Coordination Ltd,1845508,"167,952.18"
Balance Sheet,Balance Sheet,23/04/2020,Nhs Supply Chain,Non Directorate,Supply Chain Coordination Ltd,1847122,"64,059.64"
Balance Sheet,Balance Sheet,23/04/2020,Nhs Supply Chain,Non Directorate,Supply Chain Coordination Ltd,1848527,"129,982.81"
Pro Elh Public Health,Pro Elh Public Health,23/04/2020,Test Referrals,Diagnostic & Clinical Support,The Leeds Teaching Hospitals Nhs Trust,76677,"23,208.65"
Pro Elh Leeds,Pro Elh Leeds,23/04/2020,Test Referrals,Diagnostic & Clinical Support,The Leeds Teaching Hospitals Nhs Trust,76685,"22,488.50"
Pro Elh Leeds,Pro Elh Leeds,23/04/2020,Test Referrals,Diagnostic & Clinical Support,The Leeds Teaching Hospitals Nhs Trust,76695,"25,186.88"
Pro Elh Leeds,Pro Elh Leeds,09/04/2020,Test Referrals,Diagnostic & Clinical Support,The Leeds Teaching Hospitals Nhs Trust,75782,-156.36
Balance Sheet,Balance Sheet,16/04/2020,Additions - Auc (P),Non Directorate,Topcon,29621,"43,000.00"
Cancer Dir Mgmt,Cancer Dir Mgmt,02/04/2020,Other Computer Costs Maint,Surgical & Anaes Services,University Hospitals Of Morecambe Bay Nhs Ft,76038,"52,260.00"
It Support,It Support,07/04/2020,Comp H Ware Purch Non-Capital,Corporate Services,Virgin Media Ltd,1842318,"21,950.00"
It Support,It Support,28/04/2020,Comp H Ware Purch Non-Capital,Corporate Services,Virgin Media Ltd,1849859,"70,644.00"
Comp Dept - Trading Account,Comp Dept - Trading Account,28/04/2020,Other Costs - Services,Corporate Services,Vocera Communications Inc,1849849,"41,846.06"
Women & Newborn Mgmt Bgth,Women & Newborn Mgmt Bgth,28/04/2020,Med & Surg Equipment,Family Care,Zilico Ltd,1849735,"60,000.00"
Elht Emergency Preparedness,Elht Emergency Preparedness,23/04/2020,Med & Surg Supplies,Corporate Services,Zimpli Medical Limited,1846412,"28,800.00"
,,,,,,total,"14,370,678.15"
